{"text_format":"3","workbook":"xlsx","n_sheets":14,"sheets":["التلميحات","الملخص","يناير","فبراير","مارس","أبريل","مايو","يونيو","يوليو","أغسطس","سبتمبر","أكتوبر","نوفمبر","ديسمبر"],"not_rendered":{"charts":1,"defined_names":27},"read":"whole","date_system":"1900"}

{"sheet":"التلميحات","index":0,"n_rows":18,"n_cols":1,"rows_kept":18}
["تلميحات القالب"]
["هل هناك طريقة سهلة للانتقال سريعاً بين ورقة الملخص \"اتجاهات المصروفات\" وتفاصيل المصروفات الشهرية؟"]
["للانتقال بسرعة إلى مصروفات شهر معين، انقر فوق ارتباط التنقل المقترن الموجود أعلى المخطط، مثل ارتباط التنقل إلى يناير في الخلية ‏B2. بعد ذلك، للعودة إلى ورقة العمل «اتجاهات المصروفات»، انقر فوق ارتباط التنقل إلى الملخص في الخلية D1. "]
["للعودة إلى ورقة عمل التلميحات هذه، حدد الخلية N2 في ورقة عمل الملخص. من كل أوراق العمل الشهرية، حدد الخلية E1‏.‏"]
["كيف يمكنني إضافة نوع مصروفات جديد إلى \"ملخص المصروفات\" أو المصروفات الشهرية الجديدة؟"]
["«ملخص المصروفات» الموجود أسفل المخطط وتفاصيل المصروفات لكل شهر هي جداول Excel. لإضافة صفوف جديدة إلى أي جدول Excel، قم بأي مما يلي:"]
[{"$f":"ROW(A1)&\". إذا كان الجدول لا يشتمل على صف إجمالي، فقم بالكتابة أسفل الجدول وسيتم التوسيع تلقائياً عند الضغط على مفتاح الإدخال Enter أو مفتاح Tab.\"","v":"1. إذا كان الجدول لا يشتمل على صف إجمالي، فقم بالكتابة أسفل الجدول وسيتم التوسيع تلقائياً عند الضغط على مفتاح الإدخال Enter أو مفتاح Tab."}]
[{"$f":"ROW(A2)&\". ضع مؤشر الخلية في الخلية الأخيرة فوق صف الإجمالي، مثل إجمالي المصروفات الأخيرة ثم اضغط على المفتاح Tab.\"","v":"2. ضع مؤشر الخلية في الخلية الأخيرة فوق صف الإجمالي، مثل إجمالي المصروفات الأخيرة ثم اضغط على المفتاح Tab."}]
[{"$f":"ROW(A3)&\". انقر بزر الماوس الأيمن في الجدول وفي القائمة المنبثقة أشر إلى إدراج ثم انقر فوق «صفوف الجدول لأعلى» أو «صفوف الجدول لأسفل».\"","v":"3. انقر بزر الماوس الأيمن في الجدول وفي القائمة المنبثقة أشر إلى إدراج ثم انقر فوق «صفوف الجدول لأعلى» أو «صفوف الجدول لأسفل»."}]
[{"$f":"ROW(A4)&\". في الزاوية السفلية اليسرى من الجدول، ضع مؤشر الماوس على مقبض تغيير حجم الجدول واسحب لأسفل لزيادة عدد صفوف الجدول المتوفرة.\"","v":"4. في الزاوية السفلية اليسرى من الجدول، ضع مؤشر الماوس على مقبض تغيير حجم الجدول واسحب لأسفل لزيادة عدد صفوف الجدول المتوفرة."}]
["أدخل المصروفات في ورقة عمل الملخص في الجدول ملخص المصروفات في العمود المصروفات."]
["قم بإضافة مبلغ المصروفات لكل نوع مصروفات في ورقة العمل الشهرية التي تنطبق عليها المصروفات."]
["على سبيل المثال: تنطبق \"مصروفات 1\" على شهر يناير حتى شهر يونيو وعلى شهر ديسمبر. "]
[{"$f":"ROW(A1)&\". يتم إدخال المصروفات 1 في ورقة عمل الملخص ضمن المصروفات في جدول «ملخص المصروفات» (كعنوان لنوع المصروفات)\"","v":"1. يتم إدخال المصروفات 1 في ورقة عمل الملخص ضمن المصروفات في جدول «ملخص المصروفات» (كعنوان لنوع المصروفات)"}]
[{"$f":"ROW(A2)&\". عند وجود مصروفات لكل شهر، أدخل مبلغ المصروفات في ورقة عمل الشهر المناسبة.\"","v":"2. عند وجود مصروفات لكل شهر، أدخل مبلغ المصروفات في ورقة عمل الشهر المناسبة."}]
[{"$f":"ROW(A3)&\". ينشئ نوع المصروفات من ورقة العمل «ملخص المصروفات» قائمة فئات لعمود الفئة في ورقة عمل كل شهر.\"","v":"3. ينشئ نوع المصروفات من ورقة العمل «ملخص المصروفات» قائمة فئات لعمود الفئة في ورقة عمل كل شهر."}]
[{"$f":"ROW(A4)&\". استخدم قائمة الفئات في عمود الفئة لتحديد نوع المصروفات المطابق لمبلغ المصروفات الذي تم إدخاله\"","v":"4. استخدم قائمة الفئات في عمود الفئة لتحديد نوع المصروفات المطابق لمبلغ المصروفات الذي تم إدخاله"}]
[{"$f":"ROW(A5)&\". لإضافة مصروفات جديدة لأي شهر، أضف صفاً جديداً إلى جدول «ملخص المصروفات» في ورقة عمل الملخص، ثم أدخل تفاصيل المصروفات المناسبة في ورقة عمل الشهر الذي تم تطبيق المصروفات فيه.\"","v":"5. لإضافة مصروفات جديدة لأي شهر، أضف صفاً جديداً إلى جدول «ملخص المصروفات» في ورقة عمل الملخص، ثم أدخل تفاصيل المصروفات المناسبة في ورقة عمل الشهر الذي تم تطبيق المصروفات فيه."}]

{"sheet":"الملخص","index":1,"n_rows":10,"n_cols":15,"rows_kept":10}
["اتجاهات المصروفات"]
[null,"يناير","فبراير","مارس","أبريل","مايو","يونيو","يوليو","أغسطس","سبتمبر","أكتوبر","نوفمبر","ديسمبر","التلميحات"]
[]
["المصروفات","يناير","فبراير","مارس","أبريل","مايو","يونيو","يوليو","أغسطس","سبتمبر","أكتوبر","نوفمبر","ديسمبر","الإجمالي","الاتجاه"]
["مصروفات 1",{"$f":"SUMIFS(مصرفاتيناير[المبلغ],مصرفاتيناير[الفئة],ملخصالمصروفات[المصروفات])","v":{"v":33,"d":"33.00"}},{"$f":"SUMIFS(مصروفاتفبراير[المبلغ],مصروفاتفبراير[الفئة],ملخصالمصروفات[المصروفات])","v":{"v":375,"d":"375.00"}},{"$f":"SUMIFS(مصروفاتمارس[المبلغ],مصروفاتمارس[الفئة],ملخصالمصروفات[المصروفات])","v":{"v":33,"d":"33.00"}},{"$f":"SUMIFS(مصروفاتأبريل[المبلغ],مصروفاتأبريل[الفئة],ملخصالمصروفات[المصروفات])","v":{"v":45,"d":"45.00"}},{"$f":"SUMIFS(مصروفاتمايو[المبلغ],مصروفاتمايو[الفئة],ملخصالمصروفات[المصروفات])","v":{"v":375,"d":"375.00"}},{"$f":"SUMIFS(مصروفاتيناير[المبلغ],مصروفاتيناير[الفئة],ملخصالمصروفات[المصروفات])","v":{"v":201,"d":"201.00"}},{"$f":"SUMIFS(مصروفاتيوليو[المبلغ],مصروفاتيوليو[الفئة],ملخصالمصروفات[المصروفات])","v":{"v":0,"d":"0.00"}},{"$f":"SUMIFS(مصروفاتأغسطس[المبلغ],مصروفاتأغسطس[الفئة],ملخصالمصروفات[المصروفات])","v":{"v":0,"d":"0.00"}},{"$f":"SUMIFS(مصروفاتسبتمبر[المبلغ],مصروفاتسبتمبر[الفئة],ملخصالمصروفات[المصروفات])","v":{"v":0,"d":"0.00"}},{"$f":"SUMIFS(مصروفاتأكتوبر[المبلغ],مصروفاتأكتوبر[الفئة],ملخصالمصروفات[المصروفات])","v":{"v":0,"d":"0.00"}},{"$f":"SUMIFS(مصروفاتنوفمبر[المبلغ],مصروفاتنوفمبر[الفئة],ملخصالمصروفات[المصروفات])","v":{"v":0,"d":"0.00"}},{"$f":"SUMIFS(مصروفاتديسمبر[المبلغ],مصروفاتديسمبر[الفئة],ملخصالمصروفات[المصروفات])","v":{"v":201,"d":"201.00"}},{"$f":"SUM(ملخصالمصروفات[[#This Row],[يناير]:[ديسمبر]])","v":{"v":1263,"d":"1,263.00"}}]
["مصروفات 2",{"$f":"SUMIFS(مصرفاتيناير[المبلغ],مصرفاتيناير[الفئة],ملخصالمصروفات[المصروفات])","v":{"v":238,"d":"238.00"}},{"$f":"SUMIFS(مصروفاتفبراير[المبلغ],مصروفاتفبراير[الفئة],ملخصالمصروفات[المصروفات])","v":{"v":238,"d":"238.00"}},{"$f":"SUMIFS(مصروفاتمارس[المبلغ],مصروفاتمارس[الفئة],ملخصالمصروفات[المصروفات])","v":{"v":238,"d":"238.00"}},{"$f":"SUMIFS(مصروفاتأبريل[المبلغ],مصروفاتأبريل[الفئة],ملخصالمصروفات[المصروفات])","v":{"v":123,"d":"123.00"}},{"$f":"SUMIFS(مصروفاتمايو[المبلغ],مصروفاتمايو[الفئة],ملخصالمصروفات[المصروفات])","v":{"v":111,"d":"111.00"}},{"$f":"SUMIFS(مصروفاتيناير[المبلغ],مصروفاتيناير[الفئة],ملخصالمصروفات[المصروفات])","v":{"v":98,"d":"98.00"}},{"$f":"SUMIFS(مصروفاتيوليو[المبلغ],مصروفاتيوليو[الفئة],ملخصالمصروفات[المصروفات])","v":{"v":0,"d":"0.00"}},{"$f":"SUMIFS(مصروفاتأغسطس[المبلغ],مصروفاتأغسطس[الفئة],ملخصالمصروفات[المصروفات])","v":{"v":0,"d":"0.00"}},{"$f":"SUMIFS(مصروفاتسبتمبر[المبلغ],مصروفاتسبتمبر[الفئة],ملخصالمصروفات[المصروفات])","v":{"v":0,"d":"0.00"}},{"$f":"SUMIFS(مصروفاتأكتوبر[المبلغ],مصروفاتأكتوبر[الفئة],ملخصالمصروفات[المصروفات])","v":{"v":0,"d":"0.00"}},{"$f":"SUMIFS(مصروفاتنوفمبر[المبلغ],مصروفاتنوفمبر[الفئة],ملخصالمصروفات[المصروفات])","v":{"v":0,"d":"0.00"}},{"$f":"SUMIFS(مصروفاتديسمبر[المبلغ],مصروفاتديسمبر[الفئة],ملخصالمصروفات[المصروفات])","v":{"v":440,"d":"440.00"}},{"$f":"SUM(ملخصالمصروفات[[#This Row],[يناير]:[ديسمبر]])","v":{"v":1486,"d":"1,486.00"}}]
["مصروفات 3",{"$f":"SUMIFS(مصرفاتيناير[المبلغ],مصرفاتيناير[الفئة],ملخصالمصروفات[المصروفات])","v":{"v":110,"d":"110.00"}},{"$f":"SUMIFS(مصروفاتفبراير[المبلغ],مصروفاتفبراير[الفئة],ملخصالمصروفات[المصروفات])","v":{"v":110,"d":"110.00"}},{"$f":"SUMIFS(مصروفاتمارس[المبلغ],مصروفاتمارس[الفئة],ملخصالمصروفات[المصروفات])","v":{"v":110,"d":"110.00"}},{"$f":"SUMIFS(مصروفاتأبريل[المبلغ],مصروفاتأبريل[الفئة],ملخصالمصروفات[المصروفات])","v":{"v":125,"d":"125.00"}},{"$f":"SUMIFS(مصروفاتمايو[المبلغ],مصروفاتمايو[الفئة],ملخصالمصروفات[المصروفات])","v":{"v":333,"d":"333.00"}},{"$f":"SUMIFS(مصروفاتيناير[المبلغ],مصروفاتيناير[الفئة],ملخصالمصروفات[المصروفات])","v":{"v":122,"d":"122.00"}},{"$f":"SUMIFS(مصروفاتيوليو[المبلغ],مصروفاتيوليو[الفئة],ملخصالمصروفات[المصروفات])","v":{"v":0,"d":"0.00"}},{"$f":"SUMIFS(مصروفاتأغسطس[المبلغ],مصروفاتأغسطس[الفئة],ملخصالمصروفات[المصروفات])","v":{"v":0,"d":"0.00"}},{"$f":"SUMIFS(مصروفاتسبتمبر[المبلغ],مصروفاتسبتمبر[الفئة],ملخصالمصروفات[المصروفات])","v":{"v":0,"d":"0.00"}},{"$f":"SUMIFS(مصروفاتأكتوبر[المبلغ],مصروفاتأكتوبر[الفئة],ملخصالمصروفات[المصروفات])","v":{"v":0,"d":"0.00"}},{"$f":"SUMIFS(مصروفاتنوفمبر[المبلغ],مصروفاتنوفمبر[الفئة],ملخصالمصروفات[المصروفات])","v":{"v":0,"d":"0.00"}},{"$f":"SUMIFS(مصروفاتديسمبر[المبلغ],مصروفاتديسمبر[الفئة],ملخصالمصروفات[المصروفات])","v":{"v":122,"d":"122.00"}},{"$f":"SUM(ملخصالمصروفات[[#This Row],[يناير]:[ديسمبر]])","v":{"v":1032,"d":"1,032.00"}}]
["مصروفات 4",{"$f":"SUMIFS(مصرفاتيناير[المبلغ],مصرفاتيناير[الفئة],ملخصالمصروفات[المصروفات])","v":{"v":426,"d":"426.00"}},{"$f":"SUMIFS(مصروفاتفبراير[المبلغ],مصروفاتفبراير[الفئة],ملخصالمصروفات[المصروفات])","v":{"v":84,"d":"84.00"}},{"$f":"SUMIFS(مصروفاتمارس[المبلغ],مصروفاتمارس[الفئة],ملخصالمصروفات[المصروفات])","v":{"v":84,"d":"84.00"}},{"$f":"SUMIFS(مصروفاتأبريل[المبلغ],مصروفاتأبريل[الفئة],ملخصالمصروفات[المصروفات])","v":{"v":426,"d":"426.00"}},{"$f":"SUMIFS(مصروفاتمايو[المبلغ],مصروفاتمايو[الفئة],ملخصالمصروفات[المصروفات])","v":{"v":125,"d":"125.00"}},{"$f":"SUMIFS(مصروفاتيناير[المبلغ],مصروفاتيناير[الفئة],ملخصالمصروفات[المصروفات])","v":{"v":187,"d":"187.00"}},{"$f":"SUMIFS(مصروفاتيوليو[المبلغ],مصروفاتيوليو[الفئة],ملخصالمصروفات[المصروفات])","v":{"v":0,"d":"0.00"}},{"$f":"SUMIFS(مصروفاتأغسطس[المبلغ],مصروفاتأغسطس[الفئة],ملخصالمصروفات[المصروفات])","v":{"v":0,"d":"0.00"}},{"$f":"SUMIFS(مصروفاتسبتمبر[المبلغ],مصروفاتسبتمبر[الفئة],ملخصالمصروفات[المصروفات])","v":{"v":0,"d":"0.00"}},{"$f":"SUMIFS(مصروفاتأكتوبر[المبلغ],مصروفاتأكتوبر[الفئة],ملخصالمصروفات[المصروفات])","v":{"v":0,"d":"0.00"}},{"$f":"SUMIFS(مصروفاتنوفمبر[المبلغ],مصروفاتنوفمبر[الفئة],ملخصالمصروفات[المصروفات])","v":{"v":0,"d":"0.00"}},{"$f":"SUMIFS(مصروفاتديسمبر[المبلغ],مصروفاتديسمبر[الفئة],ملخصالمصروفات[المصروفات])","v":{"v":187,"d":"187.00"}},{"$f":"SUM(ملخصالمصروفات[[#This Row],[يناير]:[ديسمبر]])","v":{"v":1519,"d":"1,519.00"}}]
["مصروفات 5",{"$f":"SUMIFS(مصرفاتيناير[المبلغ],مصرفاتيناير[الفئة],ملخصالمصروفات[المصروفات])","v":{"v":54,"d":"54.00"}},{"$f":"SUMIFS(مصروفاتفبراير[المبلغ],مصروفاتفبراير[الفئة],ملخصالمصروفات[المصروفات])","v":{"v":54,"d":"54.00"}},{"$f":"SUMIFS(مصروفاتمارس[المبلغ],مصروفاتمارس[الفئة],ملخصالمصروفات[المصروفات])","v":{"v":109,"d":"109.00"}},{"$f":"SUMIFS(مصروفاتأبريل[المبلغ],مصروفاتأبريل[الفئة],ملخصالمصروفات[المصروفات])","v":{"v":98,"d":"98.00"}},{"$f":"SUMIFS(مصروفاتمايو[المبلغ],مصروفاتمايو[الفئة],ملخصالمصروفات[المصروفات])","v":{"v":33,"d":"33.00"}},{"$f":"SUMIFS(مصروفاتيناير[المبلغ],مصروفاتيناير[الفئة],ملخصالمصروفات[المصروفات])","v":{"v":441,"d":"441.00"}},{"$f":"SUMIFS(مصروفاتيوليو[المبلغ],مصروفاتيوليو[الفئة],ملخصالمصروفات[المصروفات])","v":{"v":0,"d":"0.00"}},{"$f":"SUMIFS(مصروفاتأغسطس[المبلغ],مصروفاتأغسطس[الفئة],ملخصالمصروفات[المصروفات])","v":{"v":0,"d":"0.00"}},{"$f":"SUMIFS(مصروفاتسبتمبر[المبلغ],مصروفاتسبتمبر[الفئة],ملخصالمصروفات[المصروفات])","v":{"v":0,"d":"0.00"}},{"$f":"SUMIFS(مصروفاتأكتوبر[المبلغ],مصروفاتأكتوبر[الفئة],ملخصالمصروفات[المصروفات])","v":{"v":0,"d":"0.00"}},{"$f":"SUMIFS(مصروفاتنوفمبر[المبلغ],مصروفاتنوفمبر[الفئة],ملخصالمصروفات[المصروفات])","v":{"v":0,"d":"0.00"}},{"$f":"SUMIFS(مصروفاتديسمبر[المبلغ],مصروفاتديسمبر[الفئة],ملخصالمصروفات[المصروفات])","v":{"v":99,"d":"99.00"}},{"$f":"SUM(ملخصالمصروفات[[#This Row],[يناير]:[ديسمبر]])","v":{"v":888,"d":"888.00"}}]
["الإجمالي",{"$f":"SUBTOTAL(109,ملخصالمصروفات[يناير])","v":{"v":861,"d":"861.00"}},{"$f":"SUBTOTAL(109,ملخصالمصروفات[فبراير])","v":{"v":861,"d":"861.00"}},{"$f":"SUBTOTAL(109,ملخصالمصروفات[مارس])","v":{"v":574,"d":"574.00"}},{"$f":"SUBTOTAL(109,ملخصالمصروفات[أبريل])","v":{"v":817,"d":"817.00"}},{"$f":"SUBTOTAL(109,ملخصالمصروفات[مايو])","v":{"v":977,"d":"977.00"}},{"$f":"SUBTOTAL(109,ملخصالمصروفات[يونيو])","v":{"v":1049,"d":"1,049.00"}},{"$f":"SUBTOTAL(109,ملخصالمصروفات[يوليو])","v":{"v":0,"d":"0.00"}},{"$f":"SUBTOTAL(109,ملخصالمصروفات[أغسطس])","v":{"v":0,"d":"0.00"}},{"$f":"SUBTOTAL(109,ملخصالمصروفات[سبتمبر])","v":{"v":0,"d":"0.00"}},{"$f":"SUBTOTAL(109,ملخصالمصروفات[أكتوبر])","v":{"v":0,"d":"0.00"}},{"$f":"SUBTOTAL(109,ملخصالمصروفات[نوفمبر])","v":{"v":0,"d":"0.00"}},{"$f":"SUBTOTAL(109,ملخصالمصروفات[ديسمبر])","v":{"v":1049,"d":"1,049.00"}},{"$f":"SUBTOTAL(109,ملخصالمصروفات[الإجمالي])","v":{"v":6188,"d":"6,188.00"}}]

{"sheet":"يناير","index":2,"n_rows":9,"n_cols":5,"rows_kept":9,"merged":[[0,0,0,2]]}
["مصروفات يناير",null,null,"الملخص","التلميحات"]
["التاريخ","رقم أمر الشراء","المبلغ","الفئة","الوصف"]
[{"$f":"DATE(YEAR(TODAY()),1,4)","v":"2016-01-04"},"A-12345",{"v":33,"d":"33.00"},"مصروفات 1","الموارد"]
[{"$f":"DATE(YEAR(TODAY()),1,5)","v":"2016-01-05"},"A-12346",{"v":238,"d":"238.00"},"مصروفات 2"]
[null,null,{"v":342,"d":"342.00"},"مصروفات 4"]
[null,null,{"v":110,"d":"110.00"},"مصروفات 3"]
[null,null,{"v":84,"d":"84.00"},"مصروفات 4"]
[null,null,{"v":54,"d":"54.00"},"مصروفات 5"]
["الإجمالي",null,{"$f":"SUBTOTAL(109,مصرفاتيناير[المبلغ])","v":{"v":861,"d":"861.00"}}]

{"sheet":"فبراير","index":3,"n_rows":9,"n_cols":5,"rows_kept":9,"merged":[[0,0,0,2]]}
["مصروفات فبراير",null,null,"الملخص","التلميحات"]
["التاريخ","رقم أمر الشراء","المبلغ","الفئة","الوصف"]
[{"$f":"DATE(YEAR(TODAY()),2,3)","v":"2016-02-03"},"A-12345",{"v":33,"d":"33.00"},"مصروفات 1","الموارد"]
[{"$f":"DATE(YEAR(TODAY()),2,4)","v":"2016-02-04"},"A-12346",{"v":238,"d":"238.00"},"مصروفات 2"]
[null,null,{"v":342,"d":"342.00"},"مصروفات 1"]
[null,null,{"v":110,"d":"110.00"},"مصروفات 3"]
[null,null,{"v":84,"d":"84.00"},"مصروفات 4"]
[null,null,{"v":54,"d":"54.00"},"مصروفات 5"]
["الإجمالي",null,{"$f":"SUBTOTAL(109,مصروفاتفبراير[المبلغ])","v":{"v":861,"d":"861.00"}}]

{"sheet":"مارس","index":4,"n_rows":9,"n_cols":5,"rows_kept":9,"merged":[[0,0,0,2]]}
["مصروفات مارس",null,null,"الملخص","التلميحات"]
["التاريخ","رقم أمر الشراء","المبلغ","الفئة","الوصف"]
[{"$f":"DATE(YEAR(TODAY()),3,5)","v":"2016-03-05"},"A-12345",{"v":33,"d":"33.00"},"مصروفات 1","الموارد"]
[{"$f":"DATE(YEAR(TODAY()),3,6)","v":"2016-03-06"},"A-12346",{"v":238,"d":"238.00"},"مصروفات 2"]
[null,null,{"v":55,"d":"55.00"},"مصروفات 5"]
[null,null,{"v":110,"d":"110.00"},"مصروفات 3"]
[null,null,{"v":84,"d":"84.00"},"مصروفات 4"]
[null,null,{"v":54,"d":"54.00"},"مصروفات 5"]
["الإجمالي",null,{"$f":"SUBTOTAL(109,مصروفاتمارس[المبلغ])","v":{"v":574,"d":"574.00"}}]

{"sheet":"أبريل","index":5,"n_rows":9,"n_cols":5,"rows_kept":9,"merged":[[0,0,0,2]]}
["مصروفات أبريل",null,null,"الملخص","التلميحات"]
["التاريخ","رقم أمر الشراء","المبلغ","الفئة","الوصف"]
[{"$f":"DATE(YEAR(TODAY()),4,4)","v":"2016-04-04"},"A-12345",{"v":45,"d":"45.00"},"مصروفات 1","الموارد"]
[{"$f":"DATE(YEAR(TODAY()),4,8)","v":"2016-04-08"},"A-12346",{"v":123,"d":"123.00"},"مصروفات 2"]
[null,null,{"v":342,"d":"342.00"},"مصروفات 4"]
[null,null,{"v":125,"d":"125.00"},"مصروفات 3"]
[null,null,{"v":84,"d":"84.00"},"مصروفات 4"]
[null,null,{"v":98,"d":"98.00"},"مصروفات 5"]
["الإجمالي",null,{"$f":"SUBTOTAL(109,مصروفاتأبريل[المبلغ])","v":{"v":817,"d":"817.00"}}]

{"sheet":"مايو","index":6,"n_rows":9,"n_cols":5,"rows_kept":9,"merged":[[0,0,0,2]]}
["مصروفات مايو",null,null,"الملخص","التلميحات"]
["التاريخ","رقم أمر الشراء","المبلغ","الفئة","الوصف"]
[{"$f":"DATE(YEAR(TODAY()),5,3)","v":"2016-05-03"},"A-12345",{"v":33,"d":"33.00"},"مصروفات 1","الموارد"]
[{"$f":"DATE(YEAR(TODAY()),5,8)","v":"2016-05-08"},"A-12346",{"v":111,"d":"111.00"},"مصروفات 2"]
[null,null,{"v":342,"d":"342.00"},"مصروفات 1"]
[null,null,{"v":333,"d":"333.00"},"مصروفات 3"]
[null,null,{"v":125,"d":"125.00"},"مصروفات 4"]
[null,null,{"v":33,"d":"33.00"},"مصروفات 5"]
["الإجمالي",null,{"$f":"SUBTOTAL(109,مصروفاتمايو[المبلغ])","v":{"v":977,"d":"977.00"}}]

{"sheet":"يونيو","index":7,"n_rows":9,"n_cols":5,"rows_kept":9,"merged":[[0,0,0,2]]}
["مصروفات يونيو",null,null,"الملخص","التلميحات"]
["التاريخ","رقم أمر الشراء","المبلغ","الفئة","الوصف"]
[{"$f":"DATE(YEAR(TODAY()),6,7)","v":"2016-06-07"},"A-12345",{"v":201,"d":"201.00"},"مصروفات 1","الموارد"]
[{"$f":"DATE(YEAR(TODAY()),6,8)","v":"2016-06-08"},"A-12346",{"v":98,"d":"98.00"},"مصروفات 2"]
[null,null,{"v":342,"d":"342.00"},"مصروفات 5"]
[null,null,{"v":122,"d":"122.00"},"مصروفات 3"]
[null,null,{"v":187,"d":"187.00"},"مصروفات 4"]
[null,null,{"v":99,"d":"99.00"},"مصروفات 5"]
["الإجمالي",null,{"$f":"SUBTOTAL(109,مصروفاتيناير[المبلغ])","v":{"v":1049,"d":"1,049.00"}}]

{"sheet":"يوليو","index":8,"n_rows":9,"n_cols":5,"rows_kept":9,"merged":[[0,0,0,2]]}
["مصروفات يوليو",null,null,"الملخص","التلميحات"]
["التاريخ","رقم أمر الشراء","المبلغ","الفئة","الوصف"]
[{"$f":"DATE(YEAR(TODAY()),7,9)","v":"2016-07-09"},"A-12345",null,"مصروفات 1","الموارد"]
[{"$f":"DATE(YEAR(TODAY()),7,14)","v":"2016-07-14"},"A-12346",null,"مصروفات 2"]
[{"$nulls":3},"مصروفات 2"]
[{"$nulls":3},"مصروفات 3"]
[{"$nulls":3},"مصروفات 4"]
[{"$nulls":3},"مصروفات 5"]
["الإجمالي",null,{"$f":"SUBTOTAL(109,مصروفاتيوليو[المبلغ])","v":{"v":0,"d":"0.00"}}]

{"sheet":"أغسطس","index":9,"n_rows":9,"n_cols":5,"rows_kept":9,"merged":[[0,0,0,2]]}
["مصروفات أغسطس",null,null,"الملخص","التلميحات"]
["التاريخ","رقم أمر الشراء","المبلغ","الفئة","الوصف"]
[{"$f":"DATE(YEAR(TODAY()),8,8)","v":"2016-08-08"},"A-12345",null,"مصروفات 1","الموارد"]
[{"$f":"DATE(YEAR(TODAY()),8,9)","v":"2016-08-09"},"A-12346",null,"مصروفات 2"]
[{"$nulls":3},"مصروفات 2"]
[{"$nulls":3},"مصروفات 3"]
[{"$nulls":3},"مصروفات 4"]
[{"$nulls":3},"مصروفات 5"]
["الإجمالي",null,{"$f":"SUBTOTAL(109,مصروفاتأغسطس[المبلغ])","v":{"v":0,"d":"0.00"}}]

{"sheet":"سبتمبر","index":10,"n_rows":9,"n_cols":5,"rows_kept":9,"merged":[[0,0,0,2]]}
["مصروفات سبتمبر",null,null,"الملخص","التلميحات"]
["التاريخ","رقم أمر الشراء","المبلغ","الفئة","الوصف"]
[{"$f":"DATE(YEAR(TODAY()),9,9)","v":"2016-09-09"},"A-12345",null,"مصروفات 1","الموارد"]
[{"$f":"DATE(YEAR(TODAY()),9,15)","v":"2016-09-15"},"A-12346",null,"مصروفات 2"]
[{"$nulls":3},"مصروفات 2"]
[{"$nulls":3},"مصروفات 3"]
[{"$nulls":3},"مصروفات 4"]
[{"$nulls":3},"مصروفات 5"]
["الإجمالي",null,{"$f":"SUBTOTAL(109,مصروفاتسبتمبر[المبلغ])","v":{"v":0,"d":"0.00"}}]

{"sheet":"أكتوبر","index":11,"n_rows":9,"n_cols":5,"rows_kept":9,"merged":[[0,0,0,2]]}
["مصروفات أكتوبر",null,null,"الملخص","التلميحات"]
["التاريخ","رقم أمر الشراء","المبلغ","الفئة","الوصف"]
[{"$f":"DATE(YEAR(TODAY()),10,10)","v":"2016-10-10"},"A-12345",null,"مصروفات 1","الموارد"]
[{"$f":"DATE(YEAR(TODAY()),10,21)","v":"2016-10-21"},"A-12346",null,"مصروفات 2"]
[{"$nulls":3},"مصروفات 2"]
[{"$nulls":3},"مصروفات 3"]
[{"$nulls":3},"مصروفات 4"]
[{"$nulls":3},"مصروفات 5"]
["الإجمالي",null,{"$f":"SUBTOTAL(109,مصروفاتأكتوبر[المبلغ])","v":{"v":0,"d":"0.00"}}]

{"sheet":"نوفمبر","index":12,"n_rows":9,"n_cols":5,"rows_kept":9,"merged":[[0,0,0,2]]}
["مصروفات نوفمبر",null,null,"الملخص","التلميحات"]
["التاريخ","رقم أمر الشراء","المبلغ","الفئة","الوصف"]
[{"$f":"DATE(YEAR(TODAY()),11,14)","v":"2016-11-14"},"A-12345",null,"مصروفات 1","الموارد"]
[{"$f":"DATE(YEAR(TODAY()),11,21)","v":"2016-11-21"},"A-12346",null,"مصروفات 2"]
[{"$nulls":3},"مصروفات 2"]
[{"$nulls":3},"مصروفات 3"]
[{"$nulls":3},"مصروفات 4"]
[{"$nulls":3},"مصروفات 5"]
["الإجمالي",null,{"$f":"SUBTOTAL(109,مصروفاتنوفمبر[المبلغ])","v":{"v":0,"d":"0.00"}}]

{"sheet":"ديسمبر","index":13,"n_rows":9,"n_cols":5,"rows_kept":9,"merged":[[0,0,0,2]]}
["مصروفات ديسمبر",null,null,"الملخص","التلميحات"]
["التاريخ","رقم أمر الشراء","المبلغ","الفئة","الوصف"]
[{"$f":"DATE(YEAR(TODAY()),12,2)","v":"2016-12-02"},"A-12345",{"v":201,"d":"201.00"},"مصروفات 1","الموارد"]
[{"$f":"DATE(YEAR(TODAY()),12,24)","v":"2016-12-24"},"A-12346",{"v":98,"d":"98.00"},"مصروفات 2"]
[null,null,{"v":342,"d":"342.00"},"مصروفات 2"]
[null,null,{"v":122,"d":"122.00"},"مصروفات 3"]
[null,null,{"v":187,"d":"187.00"},"مصروفات 4"]
[null,null,{"v":99,"d":"99.00"},"مصروفات 5"]
["الإجمالي",null,{"$f":"SUBTOTAL(109,مصروفاتديسمبر[المبلغ])","v":{"v":1049,"d":"1,049.00"}}]